[Event "XIV Figueira da Foz Open 2020"]
[Site "Figueira da Foz"]
[Date "2020.10.25"]
[Round "2.10"]
[White "Navarro Martinez, Victor"]
[Black "Martin Duque, Jesus"]
[Result "0-1"]
[ECO "B44"]
[WhiteElo "1732"]
[BlackElo "2426"]
[Annotator "RC"]
[PlyCount "53"]
[EventDate "2020.10.24"]
[EventType "swiss"]
[EventCountry "POR"]
[SourceTitle "playchess.com"]
[Source "ChessBase"]
[SourceQuality "1"]
[TimeControl "40/5400+30:1800+30"]

1. e4 {[%emt 0:00:00]} c5 {[%emt 0:05:06]} 2. Nf3 {[%emt 0:00:00]} Nc6 {[%emt 0:00:05]} 3. d4 {[%emt 0:00:00]} cxd4 {[%emt 0:00:06]} 4. Nxd4 {[%emt 0:00:05]} e6 {[%emt 0:00:04]} 5. c4 {[%emt 0:08:06]} Nf6 {[%emt 0:00:07]} 6. Nc3 {[%emt 0:04:24]} Bb4 {[%emt 0:00:12]} 7. Nxc6 {[%emt 0:04:42]} bxc6 {[%emt 0:00:05]} 8. e5 {[%emt 0:03:43]} Ne4 {[%emt 0:04:55]} 9. Qd4 {[%emt 0:02:55]} Qa5 {[%emt 0:01:42]} 10. Bd2 {[%emt 0:03:09]} Nxd2 {[%emt 0:00:37]} 11. Kxd2 {[%emt 0:00:40]} O-O {[%emt 0:01:19]} 12. Bd3 {[%emt 0:01:27]} f6 {[%emt 0:09:46]} 13. Qh4 {[%emt 0:25:41]} f5 {[%emt 0:02:12]} 14. Rhe1 {[%emt 0:01:34]} Rb8 {[%emt 0:00:23]} 15. Bc2 {[%emt 0:04:16]} d6 {[%emt 0:01:53]} 16. f4 {[%emt 0:08:12]} dxe5 {[%emt 0:03:03]} 17. Rxe5 {[%emt 0:00:46]} Qd8+ {[%emt 0:00:33]} 18. Qxd8 {[%emt 0:00:17]} Rxd8+ {[%emt 0:00:03]} 19. Ke3 {[%emt 0:01:24]} Bd6 {[%emt 0:03:00]} 20. Rd1 {[%emt 0:01:21]} Rxb2 {[%emt 0:00:37]} 21. Ba4 {[%emt 0:01:16]} Bc7 {[%emt 0:02:18]} 22. Rxd8+ {[%emt 0:01:21]} Bxd8 {[%emt 0:00:01]} 23. Nd1 {[%emt 0:03:44]} Rxg2 {[%emt 0:03:29]} 24. Bxc6 {[%emt 0:00:18]} Rxa2 {[%emt 0:00:17]} 25. Nf2 {[%emt 0:01:28]} Bc7 {[%emt 0:01:18]} 26. Rb5 {[%emt 0:00:16]} Ba6 {[%emt 0:00:04]} 27. Kd4 0-1

[Event "XIV Figueira da Foz Open 2020"]
[Site "Figueira da Foz"]
[Date "2020.10.25"]
[Round "2.19"]
[White "Soares, Sara Joana De Moura "]
[Black "Santos, Luis Manuel Freire R"]
[Result "1-0"]
[ECO "D37"]
[WhiteElo "1654"]
[BlackElo "1891"]
[Annotator "NA RC"]
[PlyCount "71"]
[EventDate "2020.10.24"]
[EventType "swiss"]
[EventCountry "POR"]
[SourceTitle "playchess.com"]
[Source "ChessBase"]
[SourceQuality "1"]
[TimeControl "40/5400+30:1800+30"]

1. d4 d5 2. c4 e6 {[%emt 0:03:59]} 3. Nc3 {[%emt 0:05:06]} Nf6 {[%emt 0:01:29]} 4. Nf3 {[%emt 0:02:13]} g6 {[%emt 0:02:38]} 5. Bf4 {[%emt 0:02:25]} c6 {[%emt 0:01:16]} 6. e3 {[%emt 0:06:18] D37: Queen's Gambit Declined: 5 Bf4.} Bg7 7. h3 {[%emt 0:01:15]} O-O {[%emt 0:06:26]} 8. Bd3 {[%emt 0:05:05]} b6 {[%emt 0:06:48]} 9. O-O {[%emt 0:08:19]} Bb7 {[%emt 0:04:18]} 10. Rc1 {[%emt 0:04:43]} Na6 {[%emt 0:05:48]} 11. a3 {[%emt 0:05:50]} c5 {[%emt 0:05:00]} 12. Qe2 {[%emt 0:00:58] [#]} Re8 $146 {[%emt 0:06:23]} ({Predecessor:} 12... dxc4 13. Bxc4 cxd4 14. Bxa6 Bxa6 15. Qxa6 dxc3 16. Rxc3 Nd5 17. Rd3 Qe7 18. Bg3 Bxb2 {½-½ (61) Plasil,P (2000)-Pelowski,Z (1646) Tatranske Zruby 2012}) 13. cxd5 {[%emt 0:17:25]} cxd4 {[%emt 0:09:14]} 14. Nb5 {[%emt 0:04:36]} Bf8 $18 {[%emt 0:09:02]} (14... Nxd5 $11 15. Bg3 e5 16. exd4 e4 17. Bxe4 Nf6) 15. dxe6 {[%emt 0:00:36]} Rxe6 {[%emt 0:09:22]} 16. Nbxd4 {[%emt 0:02:18]} Re8 17. Bxa6 {[%emt 0:00:03]} Bxa6 {[%emt 0:02:55]} 18. Qxa6 {[%emt 0:01:54]} Ne4 {[%emt 0:03:23]} 19. b4 {[%emt 0:00:51]} Bg7 {[%emt 0:01:07]} 20. Rfd1 {[%emt 0:03:13]} Qf6 {[%emt 0:06:43]} 21. Nb5 {[%emt 0:05:02]} Rad8 {[%emt 0:02:08]} 22. Rxd8 {[%emt 0:00:53]} Rxd8 23. Be5 {[%emt 0:00:05]} Qe7 {[%emt 0:01:25]} 24. Bxg7 {[%emt 0:00:21]} Kxg7 {[%emt 0:00:55]} 25. Nbd4 {[%emt 0:00:57]} Ng5 {[%emt 0:00:22]} 26. Nxg5 {[%emt 0:00:55]} Qxg5 {[%emt 0:01:29]} 27. Rc7 {[%emt 0:02:47]} Qh5 {[%emt 0:01:17]} 28. Qd3 {[%emt 0:01:22]} Ra8 {[%emt 0:01:15]} 29. Qb3 {[%emt 0:00:19]} Rf8 {[%emt 0:00:40]} 30. Ne6+ {[%emt 0:00:06]} Kg8 {[%emt 0:00:42]} 31. Nxf8 {[%emt 0:01:09]} Qf5 {[%emt 0:00:56]} 32. Nd7 {[%emt 0:00:26]} a6 {[%emt 0:00:34]} 33. Nxb6 {[%emt 0:01:23]} Kg7 {[%emt 0:00:39]} 34. Qc2 {[%emt 0:00:11]} Qe5 35. Qc3 {[%emt 0:00:02]} Qxc3 {[%emt 0:01:05]} 36. Rxc3 1-0

[Event "XIV Figueira da Foz Open 2020"]
[Site "Figueira da Foz"]
[Date "2020.10.25"]
[Round "3.18"]
[White "Marcal, Armando Paulo Gomes"]
[Black "Fernandes, Rui Miguel"]
[Result "1/2-1/2"]
[ECO "B12"]
[WhiteElo "1652"]
[BlackElo "1027"]
[Annotator "NA RC"]
[PlyCount "88"]
[EventDate "2020.10.24"]
[EventType "swiss"]
[EventCountry "POR"]
[SourceTitle "playchess.com"]
[Source "ChessBase"]
[SourceQuality "1"]
[TimeControl "40/5400+30:1800+30"]

1. e4 {[%emt 0:02:51]} c6 {[%emt 0:00:00]} 2. d4 {[%emt 0:00:18]} d5 {[%emt 0:00:13]} 3. e5 {[%emt 0:00:11]} Bf5 {[%emt 0:00:13]} 4. g4 {[%emt 0:00:56]} Bg6 {[%emt 0:00:48]} 5. h4 {[%emt 0:02:09]} h5 {[%emt 0:01:14]} 6. g5 {[%emt 0:01:58]} e6 {[%emt 0:00:33]} 7. Nd2 {[%emt 0:01:54]} c5 {[%emt 0:00:47]} 8. c3 {[%emt 0:04:17]} cxd4 {[%emt 0:00:45]} 9. cxd4 {[%emt 0:04:48]} Bb4 {[%emt 0:00:25]} 10. Bb5+ {[%emt 0:08:29]} Nc6 {[%emt 0:02:55]} 11. Qa4 {[%emt 0:12:15]} Bxd2+ {[%emt 0:05:51]} 12. Bxd2 {[%emt 0:00:42]} Nge7 {[%emt 0:00:18]} 13. Ne2 {[%emt 0:02:20]} O-O {[%emt 0:01:29]} 14. Rc1 {[%emt 0:04:54]} Qb6 {[%emt 0:01:21]} 15. Bxc6 {[%emt 0:03:03]} Nxc6 {[%emt 0:03:13]} 16. Rh3 {[%emt 0:00:23]} Qxb2 {[%emt 0:04:21]} 17. Kd1 {[%emt 0:10:27]} Qb6 {[%emt 0:03:29]} 18. Rb3 {[%emt 0:00:55]} Qc7 {[%emt 0:03:50]} 19. Bb4 {[%emt 0:01:18]} Rfc8 {[%emt 0:02:37]} 20. Bd6 {[%emt 0:01:40]} Qa5 {[%emt 0:02:59]} 21. Qxa5 {[%emt 0:04:49]} Nxa5 {[%emt 0:00:13]} 22. Rxc8+ {[%emt 0:04:24]} Rxc8 {[%emt 0:00:14]} 23. Rc3 {[%emt 0:02:06]} Nc4 {[%emt 0:02:31]} 24. Ke1 {[%emt 0:04:18]} b5 {[%emt 0:00:32]} 25. a3 {[%emt 0:01:16]} f5 {[%emt 0:01:41]} 26. Bc5 {[%emt 0:01:26]} a5 {[%emt 0:02:00]} 27. Nf4 {[%emt 0:00:20]} Bf7 {[%emt 0:00:54]} 28. g6 {[%emt 0:00:30]} Be8 {[%emt 0:03:41]} 29. Nxe6 {[%emt 0:01:57]} Bxg6 {[%emt 0:04:05]} 30. Nf4 {[%emt 0:00:37]} Bf7 {[%emt 0:00:48]} 31. e6 {[%emt 0:00:39]} Re8 {[%emt 0:02:12]} 32. e7 {[%emt 0:00:52]} Nb2 {[%emt 0:05:27]} 33. Bd6 {[%emt 0:04:33]} Nc4 {[%emt 0:04:03]} 34. Bc5 {[%emt 0:00:46]} Rc8 {[%emt 0:01:46]} 35. Nd3 {[%emt 0:00:34]} Be8 {[%emt 0:01:22]} 36. Ke2 {[%emt 0:01:23]} Rc6 {[%emt 0:01:11]} 37. Nf4 {[%emt 0:00:22]} Nb2 {[%emt 0:03:06]} 38. Nxd5 {[%emt 0:02:56]} Na4 {[%emt 0:01:15]} 39. Rc1 {[%emt 0:03:35]} Nxc5 {[%emt 0:00:10]} 40. Rxc5 {[%emt 0:00:00]} Rxc5 {[%emt 0:00:00]} 41. dxc5 {[%emt 0:01:49]} Kf7 {[%emt 0:02:11]} 42. Kd3 {[%emt 0:01:57]} Bc6 {[%emt 0:02:43]} 43. Nc7 {[%emt 0:01:24]} Kxe7 {[%emt 0:00:52]} 44. Kd4 {[%emt 0:00:34]} Kf6 {[%emt 0:01:36]} 1/2-1/2

[Event "XIV Figueira da Foz Open 2020"]
[Site "Figueira da Foz"]
[Date "2020.10.26"]
[Round "4.15"]
[White "Silva, Mariana Sofia T."]
[Black "Santos, Luis Manuel Freire R"]
[Result "1-0"]
[ECO "C55"]
[WhiteElo "1885"]
[BlackElo "1891"]
[Annotator "NA RC"]
[PlyCount "87"]
[EventDate "2020.10.24"]
[EventType "swiss"]
[EventCountry "POR"]
[SourceTitle "playchess.com"]
[Source "ChessBase"]
[SourceQuality "1"]
[TimeControl "40/5400+30:1800+30"]

{[%evp 18,84,68,41,50,48,47,36,60,32767,32767,-25,-18,-28,-21,-30,-12,-96,-86,-124,32767,32767,32767,-59,-41,-56,-39,-54,-27,-29,-8,-35,-33,-85,32767,-100,32767,-79,32767,-97,-55,-64,-47,32767,0,32767,32767,32767,0,-45,106,89,116,84,32767,643,32767,32767,739,690,6760,2423,1906,5510,5094,12837,29972,29978,6032]} 1. e4 {[%emt 0:28:13]} e5 {[%emt 0:00:00]} 2. Nf3 {[%emt 0:00:11]} Nc6 {[%emt 0:00:00]} 3. Bc4 {[%emt 0:00:08]} Nf6 {[%emt 0:00:27]} 4. d3 {[%emt 0:00:07]} d6 {[%emt 0:00:24]} 5. O-O {[%emt 0:00:10]} Bg4 {[%emt 0:00:36]} 6. h3 {[%emt 0:00:18]} Bh5 {[%emt 0:00:14]} 7. c3 {[%emt 0:00:17]} Be7 {[%emt 0:00:47]} 8. Re1 {[%emt 0:00:34]} O-O {[%emt 0:00:12]} 9. Nbd2 {[%emt 0:00:17]} d5 {[%emt 0:01:09]} 10. exd5 {[%emt 0:02:12]} Nxd5 {[%emt 0:00:50]} 11. Ne4 {[%emt 0:01:07] C55: Two Knights: 4 d3, 4 d4 exd4 5 e5 and Max Lange Attack.} Nb6 {[%emt 0:03:15]} 12. Bb3 {[%emt 0:00:29]} Bf6 {[%emt 0:01:06] [#]} 13. Nxf6+ $146 {[%emt 0:03:50]} Qxf6 {[%emt 0:00:24]} 14. Re3 {[%emt 0:12:38]} ({White should try} 14. g4 $14 Bg6 15. Qe2 (15. h4 h5 16. Ng5 hxg4 17. Qxg4 Bxd3 18. Re3 Qf5 19. Qg3 {0-1 (49) Andersen,H (1683)-Ingvaldsen,J (1691) Sarpsborg 2001})) 14... Rad8 {[%emt 0:06:57]} 15. Qe1 {[%emt 0:09:38]} Nd5 {[%emt 0:04:40]} 16. Bxd5 $1 {[%emt 0:00:07]} Rxd5 {[%emt 0:00:55]} 17. Nd2 {[%emt 0:03:49]} Bg6 {[%emt 0:05:04]} 18. Ne4 {[%emt 0:07:09]} (18. b4 $1 $15) 18... Bxe4 {[%emt 0:01:25]} 19. dxe4 {[%emt 0:00:06]} Rd7 {[%emt 0:02:04]} 20. Rg3 {[%emt 0:01:08]} h6 {[%emt 0:02:24]} 21. Be3 {[%emt 0:02:06]} Rfd8 {[%emt 0:06:12]} 22. Qe2 {[%emt 0:00:09]} Ne7 {[%emt 0:04:35]} 23. Qg4 {[%emt 0:02:13]} b6 {[%emt 0:03:30]} 24. Rf1 {[%emt 0:07:02]} Ng6 {[%emt 0:03:28]} 25. Rf3 {[%emt 0:06:53]} Qh4 {[%emt 0:01:50]} 26. Qf5 {[%emt 0:01:18]} Qe7 {[%emt 0:06:34]} 27. Rg3 {[%emt 0:01:02]} Rd6 {[%emt 0:06:07]} 28. Qf3 {[%emt 0:07:02]} Rf6 {[%emt 0:00:48]} 29. Qg4 {[%emt 0:00:44]} Qd6 {[%emt 0:06:42]} 30. h4 {[%emt 0:01:19]} Qf8 {[%emt 0:02:50]} 31. h5 {[%emt 0:01:53]} Nf4 {[%emt 0:02:40]} 32. Kh2 {[%emt 0:00:47]} Rd3 {[%emt 0:02:21]} 33. Qh4 {[%emt 0:00:57]} g5 {[%emt 0:02:25]} (33... Qd8 $15 {stays ahead.}) 34. hxg6 $1 {[%emt 0:00:21] Discovered Attack} fxg6 {[%emt 0:00:20]} 35. Bxf4 $1 {[%emt 0:00:36] Discovered Attack} Rxg3 {[%emt 0:00:25]} 36. Bxg3 {[%emt 0:00:12]} g5 {[%emt 0:00:24]} 37. Qg4 {[%emt 0:00:18]} Qf7 {[%emt 0:01:55]} 38. Rd1 {[%emt 0:00:45]} h5 {[%emt 0:00:59]} 39. Qxg5+ $18 {[%emt 0:00:19]} (39. Qc8+ $142 Kg7 {[#]} 40. Rd7 $1 {[%mdl 576] Double Attack} Re6 41. Qxc7 Qxd7 42. Qxd7+ Kf6 43. f4 exf4 44. Bf2 Rxe4 45. Bd4+ Rxd4 46. cxd4) 39... Qg7 {[%emt 0:02:17]} 40. Qxg7+ {[%emt 0:00:00]} Kxg7 {[%emt 0:00:00]} 41. Bxe5 {[%emt 0:00:17] Double Attack} Kg6 {[%emt 0:00:31]} 42. Bxf6 {[%emt 0:00:09]} Kxf6 {[%emt 0:00:51]} 43. f4 {[%emt 0:00:06]} Ke6 {[%emt 0:00:09]} 44. Kg3 {[%emt 0:00:11]} 1-0

[Event "XIV Figueira da Foz Open 2020"]
[Site "Figueira da Foz"]
[Date "2020.10.26"]
[Round "4.18"]
[White "Silva, Jose Lucas Ferreira"]
[Black "Marcal, Armando Paulo Gomes"]
[Result "1-0"]
[ECO "C03"]
[WhiteElo "1336"]
[BlackElo "1652"]
[Annotator "NA RC"]
[PlyCount "84"]
[EventDate "2020.10.24"]
[EventType "swiss"]
[EventCountry "POR"]
[SourceTitle "playchess.com"]
[Source "ChessBase"]
[SourceQuality "1"]
[TimeControl "40/5400+30:1800+30"]

1. e4 {[%emt 0:00:00]} e6 {[%emt 0:08:52]} 2. d4 {[%emt 0:00:00]} d5 {[%emt 0:00:09]} 3. Nd2 {[%emt 0:00:22]} b6 {[%emt 0:02:43]} 4. c3 {[%emt 0:03:45]} Nf6 {[%emt 0:05:16]} 5. e5 {[%emt 0:00:16]} Nfd7 {[%emt 0:00:02]} 6. Nh3 {[%emt 0:02:22]} c5 {[%emt 0:00:56]} 7. Nf3 {[%emt 0:01:23]} Be7 {[%emt 0:02:58]} 8. Bd3 {[%emt 0:02:11]} Nf8 {[%emt 0:04:32]} 9. Nf4 {[%emt 0:05:28]} Ng6 {[%emt 0:02:45]} 10. g3 {[%emt 0:07:28]} Qd7 {[%emt 0:02:53]} 11. Nh5 {[%emt 0:04:16]} Bf8 {[%emt 0:02:47]} 12. Bh6 {[%emt 0:05:49]} Rg8 {[%emt 0:00:52]} 13. Be3 {[%emt 0:05:02]} Nc6 {[%emt 0:01:27]} 14. Ng5 {[%emt 0:02:33]} cxd4 {[%emt 0:00:39]} 15. cxd4 {[%emt 0:00:36]} Rh8 {[%emt 0:04:47]} 16. a3 {[%emt 0:02:42]} Bb7 {[%emt 0:05:43]} 17. Rc1 {[%emt 0:00:37]} h6 {[%emt 0:06:59]} 18. Nf3 {[%emt 0:03:02]} O-O-O {[%emt 0:00:43]} 19. Qa4 {[%emt 0:01:31]} Kb8 {[%emt 0:00:07]} 20. Bb5 {[%emt 0:01:07]} Nge7 {[%emt 0:02:27]} 21. O-O {[%emt 0:02:15]} a6 {[%emt 0:04:53]} 22. Bxc6 {[%emt 0:06:55]} Nxc6 {[%emt 0:00:45]} 23. Qb3 {[%emt 0:01:49]} Ka7 {[%emt 0:00:24]} 24. Nd2 {[%emt 0:01:26]} a5 {[%emt 0:04:49]} 25. Nf4 {[%emt 0:05:28]} Ne7 {[%emt 0:01:11]} 26. Rc3 {[%emt 0:00:52]} Rc8 {[%emt 0:00:30]} 27. Rfc1 {[%emt 0:00:20]} Rxc3 {[%emt 0:00:05]} 28. Qxc3 {[%emt 0:00:44]} Kb8 {[%emt 0:00:19]} 29. Nd3 {[%emt 0:00:58]} Nc6 {[%emt 0:00:48]} 30. b4 {[%emt 0:03:32]} axb4 {[%emt 0:02:03]} 31. Nxb4 {[%emt 0:00:10]} Bxb4 {[%emt 0:01:08]} 32. axb4 {[%emt 0:00:16]} Rc8 {[%emt 0:00:06]} 33. Qb2 {[%emt 0:00:43]} Na7 {[%emt 0:07:30]} 34. Rxc8+ {[%emt 0:02:14]} Nxc8 {[%emt 0:03:21]} 35. Nb1 {[%emt 0:03:38]} b5 {[%emt 0:05:06]} 36. Qc2 {[%emt 0:03:18]} h5 {[%emt 0:00:26]} 37. Qc5 {[%emt 0:00:21]} g6 {[%emt 0:01:37]} 38. h4 Bc6 {[%emt 0:03:37]} 39. Nd2 {[%emt 0:03:20]} Ne7 {[%emt 0:03:19]} 40. Bg5 {[%emt 0:00:00]} Nc8 {[%emt 0:00:00]} 41. Nb3 {[%emt 0:02:06]} Bb7 {[%emt 0:02:37]} 42. Na5 {[%emt 0:02:05]} Nb6 {[%emt 0:01:56]} 1-0

[Event "XIV Figueira da Foz Open 2020"]
[Site "Figueira da Foz"]
[Date "2020.10.28"]
[Round "6.8"]
[White "Dias, Paulo"]
[Black "Silva, Pedro Gil Ferreira D"]
[Result "1-0"]
[ECO "D25"]
[WhiteElo "2338"]
[BlackElo "2034"]
[Annotator "RC"]
[PlyCount "83"]
[EventDate "2020.10.24"]
[EventType "swiss"]
[EventCountry "POR"]
[SourceTitle "playchess.com"]
[Source "ChessBase"]
[SourceQuality "1"]
[TimeControl "40/5400+30:1800+30"]

1. d4 {[%emt 0:03:34]} d5 {[%emt 0:00:00]} 2. c4 {[%emt 0:00:27]} dxc4 {[%emt 0:00:00]} 3. Nf3 {[%emt 0:01:10]} Nf6 {[%emt 0:00:10]} 4. e3 {[%emt 0:02:03]} b5 {[%emt 0:01:21]} 5. a4 {[%emt 0:05:20]} b4 {[%emt 0:07:18]} 6. Bxc4 {[%emt 0:00:32]} e6 {[%emt 0:00:15]} 7. O-O {[%emt 0:04:44]} Be7 {[%emt 0:01:04]} 8. Nbd2 {[%emt 0:03:17]} Bb7 {[%emt 0:01:26]} 9. Qe2 {[%emt 0:02:20]} O-O {[%emt 0:02:23]} 10. e4 {[%emt 0:01:39]} c5 {[%emt 0:02:46]} 11. dxc5 {[%emt 0:03:49]} Nbd7 {[%emt 0:01:32]} 12. e5 {[%emt 0:07:14]} Nd5 {[%emt 0:01:52]} 13. Ne4 {[%emt 0:01:54]} Nxc5 {[%emt 0:02:01]} 14. Nxc5 {[%emt 0:00:39]} Bxc5 {[%emt 0:00:34]} 15. Ng5 {[%emt 0:01:05]} Be7 {[%emt 0:09:45]} 16. Qg4 {[%emt 0:06:14]} Rc8 {[%emt 0:16:32]} 17. Bd3 {[%emt 0:06:15]} Rxc1 {[%emt 0:15:55]} 18. Bxh7+ {[%emt 0:18:55]} Kh8 {[%emt 0:00:13]} 19. Nxf7+ {[%emt 0:00:42]} Rxf7 {[%emt 0:00:18]} 20. Bg6 {[%emt 0:04:06]} Rxf1+ {[%emt 0:00:18]} 21. Rxf1 {[%emt 0:00:27]} Rf5 {[%emt 0:05:01]} 22. Qh3+ {[%emt 0:01:01]} Bh4 {[%emt 0:00:32]} 23. Bxf5 {[%emt 0:00:20]} exf5 {[%emt 0:00:03]} 24. g3 {[%emt 0:01:14]} Kg8 {[%emt 0:01:39]} 25. Qxh4 {[%emt 0:06:20]} Qxh4 {[%emt 0:00:25]} 26. gxh4 {[%emt 0:00:02]} f4 {[%emt 0:05:01]} 27. f3 {[%emt 0:03:55]} Kf7 {[%emt 0:02:16]} 28. Kf2 {[%emt 0:00:03]} g6 {[%emt 0:01:30]} 29. Rg1 {[%emt 0:03:52]} Bc8 {[%emt 0:05:46]} 30. Ke2 {[%emt 0:02:49]} Bd7 {[%emt 0:03:18]} 31. a5 {[%emt 0:00:47]} Bf5 {[%emt 0:08:08]} 32. Rc1 {[%emt 0:00:33]} b3 {[%emt 0:01:08]} 33. Rc6 {[%emt 0:01:39]} a6 {[%emt 0:02:19]} 34. Kd2 {[%emt 0:02:22]} Nb4 {[%emt 0:02:22]} 35. Rb6 {[%emt 0:00:59]} Nc2 {[%emt 0:00:45]} 36. Rxa6 {[%emt 0:01:47]} Nd4 {[%emt 0:00:20]} 37. Rf6+ {[%emt 0:01:09]} Ke7 {[%emt 0:00:20]} 38. a6 {[%emt 0:00:54]} Nxf3+ {[%emt 0:01:29]} 39. Kc3 {[%emt 0:00:16]} Be4 {[%emt 0:00:30]} 40. Rxf4 {[%emt 0:00:00]} Ba8 {[%emt 0:00:00]} 41. Rb4 {[%emt 0:05:25]} Nxe5 {[%emt 0:00:26]} 42. Rb8 {[%emt 0:00:19]} 1-0

[Event "XIV Figueira da Foz Open 2020"]
[Site "Figueira da Foz"]
[Date "2020.10.28"]
[Round "6.16"]
[White "Silva, Jose Lucas Ferreira"]
[Black "Morais, Mario Martins Freita"]
[Result "0-1"]
[ECO "B06"]
[WhiteElo "1336"]
[BlackElo "1808"]
[Annotator "NA RC"]
[PlyCount "114"]
[EventDate "2020.10.24"]
[EventType "swiss"]
[EventCountry "POR"]
[SourceTitle "playchess.com"]
[Source "ChessBase"]
[SourceQuality "1"]
[TimeControl "40/5400+30:1800+30"]

1. e4 {[%emt 0:00:00]} g6 {[%emt 0:00:00]} 2. Nc3 {[%emt 0:00:00]} Bg7 {[%emt 0:00:00]} 3. Bc4 {[%emt 0:00:31]} d6 {[%emt 0:02:21]} 4. f4 {[%emt 0:00:32]} Nf6 {[%emt 0:04:45]} 5. Nf3 {[%emt 0:02:11]} O-O {[%emt 0:06:45]} 6. h3 {[%emt 0:03:15]} Nxe4 {[%emt 0:04:40]} 7. Nxe4 {[%emt 0:01:28]} d5 {[%emt 0:00:04] Double Attack} 8. Bd3 {[%emt 0:00:52]} dxe4 {[%emt 0:00:08]} 9. Bxe4 {[%emt 0:00:05]} Nd7 {[%emt 0:00:33]} 10. c3 {[%emt 0:02:05]} Nc5 {[%emt 0:00:42]} 11. Bc2 {[%emt 0:01:09]} Nd3+ {[%emt 0:00:13]} 12. Bxd3 {[%emt 0:00:04]} Qxd3 {[%emt 0:00:07]} 13. Qe2 {[%emt 0:00:52]} Bf5 {[%emt 0:00:19]} 14. Qxd3 {[%emt 0:02:38]} Bxd3 {[%emt 0:00:40]} 15. Kf2 {[%emt 0:00:07]} c5 {[%emt 0:00:19]} 16. Re1 {[%emt 0:02:31]} Bf6 {[%emt 0:00:44]} 17. Ne5 {[%emt 0:00:17]} Rfd8 {[%emt 0:03:50]} 18. Re3 {[%emt 0:04:25]} Ba6 {[%emt 0:07:55]} 19. b3 {[%emt 0:04:05]} e6 {[%emt 0:01:28]} 20. Ke1 {[%emt 0:04:03]} Rac8 {[%emt 0:02:24]} 21. c4 {[%emt 0:03:13]} Rd4 {[%emt 0:08:56]} 22. g3 {[%emt 0:01:21]} Rcd8 {[%emt 0:00:20]} 23. Ke2 {[%emt 0:04:00]} b6 {[%emt 0:03:23]} 24. d3 {[%emt 0:02:13]} Bb7 {[%emt 0:07:07]} 25. Bb2 {[%emt 0:01:31]} R4d6 {[%emt 0:09:10]} 26. Rb1 {[%emt 0:05:19]} Bg7 {[%emt 0:01:39]} 27. Bc3 {[%emt 0:05:12]} Bg2 {[%emt 0:04:59]} 28. h4 {[%emt 0:08:00]} h5 {[%emt 0:06:49]} 29. Rd1 {[%emt 0:03:48]} Bh3 {[%emt 0:03:06]} 30. Rd2 {[%emt 0:02:06]} Bf5 {[%emt 0:00:17]} 31. Bb2 {[%emt 0:02:13]} a6 {[%emt 0:00:16]} 32. a4 {[%emt 0:01:53]} f6 {[%emt 0:01:33]} 33. Nf3 {[%emt 0:00:38]} Bg4 {[%emt 0:00:12]} 34. Kf2 {[%emt 0:03:14]} Kf7 {[%emt 0:00:15]} 35. a5 {[%emt 0:03:10]} b5 {[%emt 0:02:35]} 36. Ba3 {[%emt 0:03:48]} b4 {[%emt 0:00:07]} 37. Bb2 {[%emt 0:00:07]} Bh6 {[%emt 0:00:29]} 38. Ba1 {[%emt 0:14:50] [#]} (38. d4 {might work better.}) 38... R8d7 {[%emt 0:03:04]} ({Better is} 38... e5 $1 $19 {[%mdl 512]} 39. Rd1 (39. fxe5 R6d7) 39... Kg8) 39. d4 {[%emt 0:04:52]} Bxf3 {[%emt 0:00:23]} (39... Bf8 $142 40. Ke1 cxd4 41. Rxd4 Rxd4 42. Nxd4 Bd6) 40. Rxf3 {[%emt 0:00:00]} cxd4 {[%emt 0:00:00]} 41. Rd1 {[%emt 0:01:38]} (41. Ke2 $17) 41... Ke7 {[%emt 0:02:30]} 42. Rfd3 {[%emt 0:03:50]} e5 {[%emt 0:00:19]} 43. Bb2 {[%emt 0:02:04]} Ke6 {[%emt 0:00:27]} 44. Kf3 {[%emt 0:02:04]} Kf5 {[%emt 0:00:09]} 45. Kg2 {[%emt 0:00:58]} Rd8 {[%emt 0:01:33]} 46. Kh3 {[%emt 0:05:39]} Bf8 {[%emt 0:00:31]} 47. fxe5 {[%emt 0:02:10]} (47. Kg2 $142) 47... fxe5 {[%emt 0:00:03]} 48. Rf1+ {[%emt 0:00:34]} Ke4 {[%emt 0:02:02]} 49. Rff3 $2 {[%emt 0:00:39]} (49. Rdd1) 49... Bh6 {[%emt 0:00:08]} 50. g4 {[%emt 0:00:26]} Be3 {[%emt 0:00:15]} 51. Rfxe3+ {[%emt 0:00:07]} dxe3 {[%emt 0:00:19]} 52. Rxd6 {[%emt 0:00:06]} Rxd6 {[%emt 0:00:01]} 53. Kg2 {[%emt 0:00:25]} Rd2+ {[%emt 0:00:02]} 54. Kf1 {[%emt 0:00:10]} Rxb2 {[%emt 0:00:07]} 55. c5 {[%emt 0:00:04]} Kf3 {[%emt 0:00:13]} 56. Kg1 {[%emt 0:00:23]} e2 {[%emt 0:00:08]} 57. gxh5 {[%emt 0:00:03]} e1=Q# 0-1